[Event "29th Bosnjaci Open 2025"]
[Site "Bosnjaci"]
[Date "2025.01.04"]
[Round "3.11"]
[White "Topalic, Fran"]
[Black "Jakovic, Roko"]
[Result "1/2-1/2"]
[ECO "B51"]
[WhiteElo "1968"]
[BlackElo "2273"]
[Annotator "TA"]
[PlyCount "67"]
[EventDate "2025.01.04"]
[EventType "swiss"]
[EventCountry "CRO"]
[SourceTitle "playchess.com"]
[Source "ChessBase"]
[SourceQuality "1"]
[TimeControl "5400+30"]

{[%evp 9,67,12,18,6,9,19,18,0,6,0,14,1,8,23,8,0,11,3,18,17,32,19,2,0,18,-7,27,46,52,59,71,69,61,27,116,62,72,57,65,14,7,-81,0,0,10,-7,12,0,0,0,0,0,0,0,0,0,0,0,0,0]} 1. e4 {[%emt 0:00:03]} c5 {[%emt 0:00:21]} 2. Nf3 {[%emt 0:00:06]} d6 {[%emt 0:00:05]} 3. Bb5+ {[%emt 0:00:03]} Nd7 {[%emt 0:00:17][%cal Bb8d7,Bd7e5,Be5c6,Bc6b4][%mdl 32]} 4. a4 {[%emt 0:00:05]} Ngf6 {[%emt 0:00:49]} 5. Nc3 {[%emt 0:00:07]} a6 {[%emt 0:00:54]} 6. Bc4 {[%emt 0:00:05]} e6 {[%emt 0:01:54]} 7. d4 {[%emt 0:00:06]} cxd4 {[%emt 0:04:38]} 8. Nxd4 {[%emt 0:00:06]} Ne5 {[%emt 0:06:40]} 9. Be2 {[%emt 0:01:50]} Be7 {[%emt 0:06:00]} 10. O-O {[%emt 0:04:25]} Bd7 {[%emt 0:02:46]} 11. f4 {[%emt 0:07:46]} Nc6 {[%emt 0:00:12]} 12. Nb3 {[%emt 0:01:54]} O-O {[%emt 0:04:22][%cal Ob7b5]} 13. a5 {[%emt 0:01:46]} Rc8 {[%emt 0:05:46]} 14. Be3 {[%emt 0:01:04]} Nb4 {[%emt 0:01:00]} 15. Bb6 {[%emt 0:13:32]} Qe8 {[%emt 0:00:15]} 16. Bf3 {[%emt 0:00:19]} e5 {[%emt 0:07:58]} 17. f5 {[%emt 0:01:10]} Bc6 {[%emt 0:14:09]} 18. g4 $36 {[%emt 0:03:11][%mdl 2048] Black is under pressure.} Nd7 {[%emt 0:01:51]} 19. Be3 {[%emt 0:01:28]} Qd8 {[%emt 0:00:47]} 20. Qd2 {[%emt 0:04:05]} h6 {[%emt 0:03:24]} 21. Rf2 {[%emt 0:04:32] White is more active.} Nc5 {[%emt 0:10:09]} (21... b5 $11 {remains equal.}) 22. Rg2 {[%emt 0:04:38]} ({Better is} 22. f6 $16 Nxb3 (22... Bxf6 $2 23. Nxc5 Bh4 24. N5a4 $18) 23. cxb3 Bxf6 24. Ne2) 22... Bg5 $14 {[%emt 0:05:37]} 23. Bxg5 {[%emt 0:01:20]} Qxg5 {[%emt 0:00:26]} 24. Qxg5 {[%emt 0:00:07]} (24. Qxd6 $2 {loses.} Nxc2 (24... Qe3+ $2 25. Rf2 $17) 25. Rxc2 Qe3+ (25... Nxb3 26. Re1 $19) 26. Rf2 Nxb3 $19) (24. Nxc5 $1 $14 dxc5 25. Qf2) 24... hxg5 $11 {[%emt 0:00:05]} 25. Rd1 {[%emt 0:00:43]} (25. Nxc5 $11 dxc5 26. Rd2) 25... Nxb3 {[%emt 0:02:50]} (25... Na4 $17 26. Nxa4 Bxa4) 26. cxb3 {[%emt 0:00:07][%cal Oh2h4]} Rfd8 {[%emt 0:01:23]} 27. Rgd2 {[%emt 0:02:06]} Be8 {[%emt 0:01:16]} (27... Kf8 $5) 28. Rxd6 {[%emt 0:03:23]} Rxd6 {[%emt 0:00:07]} 29. Rxd6 {[%emt 0:00:04]} Nc6 $1 {[%emt 0:00:36]} 30. Nd5 {[%emt 0:06:56][%cal Od6c6]} Kf8 {[%emt 0:00:09]} 31. Nb6 {[%emt 0:07:41]} Rc7 {[%emt 0:02:03][%cal Oc6d4] And now ...Nd4! would win.} 32. Nd5 {[%emt 0:01:01]} Rc8 $1 {[%emt 0:00:18]} 33. Nb6 {[%emt 0:00:05]} Rc7 {[%emt 0:00:14][%cal Oc6d4]} 34. Nd5 {[%emt 0:00:06]} 1/2-1/2

[Event "29th Bosnjaci Open 2025"]
[Site "Bosnjaci"]
[Date "2025.01.04"]
[Round "3.12"]
[White "Sabic, Tomislav"]
[Black "Fercec, Nenad"]
[Result "0-1"]
[ECO "A29"]
[WhiteElo "2021"]
[BlackElo "2382"]
[Annotator "TA"]
[PlyCount "90"]
[EventDate "2025.01.04"]
[EventType "swiss"]
[EventCountry "CRO"]
[SourceTitle "playchess.com"]
[Source "ChessBase"]
[SourceQuality "1"]
[TimeControl "5400+30"]

{[%evp 16,90,5,0,17,18,25,6,0,12,27,21,25,26,16,26,23,0,0,7,35,38,47,0,22,18,33,0,0,0,39,30,39,46,56,52,68,66,44,41,78,19,23,-28,-38,-35,-44,-102,-116,-101,-111,-150,-143,-160,-163,-156,-158,-258,-264,-246,-256,-242,-249,-320,-322,-308,-302,-291,-287,-314,-316,-302,-264,-317,-301,-423,-397]} 1. c4 {[%emt 0:00:09]} e5 {[%emt 0:00:07]} 2. Nc3 {[%emt 0:00:14]} Nf6 {[%emt 0:00:10]} 3. Nf3 {[%emt 0:00:19]} Nc6 {[%emt 0:00:11]} 4. g3 {[%emt 0:00:23]} d5 {[%emt 0:00:11]} 5. cxd5 {[%emt 0:00:15]} Nxd5 {[%emt 0:00:08]} 6. Bg2 {[%emt 0:00:21]} Nb6 {[%emt 0:00:12]} 7. d3 {[%emt 0:00:41]} Be7 {[%emt 0:00:15]} 8. O-O {[%emt 0:00:44]} O-O {[%emt 0:00:08]} 9. a3 {[%emt 0:00:46]} Bg4 {[%emt 0:00:30]} 10. b4 {[%emt 0:02:56]} a6 {[%emt 0:00:13]} 11. h3 {[%emt 0:02:48]} Bh5 {[%emt 0:00:29]} 12. Bb2 {[%emt 0:01:37]} Kh8 {[%emt 0:02:45]} 13. Ne4 {[%emt 0:05:02]} f5 {[%emt 0:00:16]} 14. Nc5 {[%emt 0:01:41]} Bxc5 {[%emt 0:00:09]} 15. bxc5 {[%emt 0:00:08]} Nd7 {[%emt 0:00:07]} 16. Rc1 {[%emt 0:03:03]} Qe7 {[%emt 0:00:38]} 17. Qc2 {[%emt 0:04:52]} Nf6 {[%emt 0:02:24]} 18. Rfe1 {[%emt 0:04:11]} Rae8 {[%emt 0:21:24]} 19. Nd2 {[%emt 0:08:46]} (19. e3 $14 {is more appropriate.}) 19... Qd7 {[%emt 0:08:34]} 20. e3 {[%emt 0:11:20]} Bf7 {[%emt 0:02:35]} 21. Nc4 {[%emt 0:06:51]} Bd5 {[%emt 0:01:15]} 22. e4 $36 {[%emt 0:05:45][%mdl 2048] White has the initiative.} fxe4 {[%emt 0:03:36]} 23. dxe4 {[%emt 0:02:19]} Bf7 {[%emt 0:05:33]} 24. Rcd1 {[%emt 0:06:06]} Qe6 {[%emt 0:09:04]} 25. Ne3 {[%emt 0:01:24]} Bg6 {[%emt 0:00:26]} 26. Qc4 {[%emt 0:03:10]} Qxc4 {[%emt 0:03:32]} 27. Nxc4 {[%emt 0:00:08]} Re7 {[%emt 0:03:44] [#]} 28. Bc1 {[%emt 0:09:39]} (28. Bc3 $1 $16) 28... h6 $11 {[%emt 0:01:18]} 29. Ne3 {[%emt 0:06:13]} (29. f3) 29... Bxe4 {[%emt 0:03:03]} 30. Bxe4 {[%emt 0:00:25]} Nxe4 {[%emt 0:00:06] A dynamic duo of knights.} 31. Nd5 {[%emt 0:01:45] [#]} ({White should play} 31. Nf5 $1 $15 Rxf5 32. Rxe4) 31... Rd7 $1 $17 {[%emt 0:01:52]} 32. Rxe4 {[%emt 0:00:45] Ne3 would now be deadly.} Rfd8 {[%emt 0:00:07]} 33. Rde1 {[%emt 0:05:25]} Rxd5 {[%emt 0:00:08]} 34. Be3 {[%emt 0:01:29]} Nd4 {[%emt 0:01:11]} 35. Bxd4 {[%emt 0:02:24]} exd4 $19 {[%emt 0:00:04][%mdl 4096] Endgame KRR-KRR. Black is a pawn up.} (35... Rxd4 36. Rxe5 R8d5 37. Kg2 $11) 36. Re5 {[%emt 0:00:03]} (36. Rc1 $17) 36... d3 {[%emt 0:00:37]} 37. Rxd5 {[%emt 0:00:36]} Rxd5 {[%emt 0:00:06] KR-KR. Black is a pawn up.} 38. Rd1 {[%emt 0:00:01]} Kg8 {[%emt 0:01:26][%cal Og8f7]} (38... Rxc5 39. Rxd3 a5 40. Kf1) 39. f4 {[%emt 0:01:42]} Kf7 {[%emt 0:00:25][%cal Of7e6]} (39... Rxc5 40. Rxd3 g5 41. fxg5 $17) 40. Kf2 {[%emt 0:00:11]} d2 {[%emt 0:00:39]} (40... Rxc5 41. Rxd3 b5 42. Rd7+ Kf6 43. g4 $19) 41. Ke3 {[%emt 0:02:40]} Ke6 {[%emt 0:04:14]} 42. Ke4 {[%emt 0:01:20]} Rxc5 {[%emt 0:01:25]} 43. Rxd2 {[%emt 0:00:32]} Rc3 {[%emt 0:00:55][%csl LRa3,LRg3]} 44. Rb2 {[%emt 0:00:40]} b5 {[%emt 0:00:10]} (44... Rxg3 45. Rxb7 Kd7 (45... Rxh3 46. Rxc7 Rg3 47. Rc6+ Kf7 48. Rxa6 $11) 46. Rb1 $17) 45. a4 {[%emt 0:00:19]} (45. f5+ {keeps fighting.} Ke7 46. a4) 45... Rc4+ {[%emt 0:00:05]} ({Don't take} 45... bxa4 46. Rb4 a3 (46... Rxg3 47. Rxa4 Rc3 48. Rxa6+ c6 49. Ra7 $17) 47. Ra4 $19) (45... Rxg3 $2 46. axb5 axb5 (46... Rxh3 47. bxa6 Ra3 48. Rc2 $15) 47. Rxb5 $19) 0-1

[Event "29th Bosnjaci Open 2025"]
[Site "Bosnjaci"]
[Date "2025.01.04"]
[Round "3.13"]
[White "Maravic, Ivan"]
[Black "Franc, Borna"]
[Result "1/2-1/2"]
[ECO "D35"]
[WhiteElo "2074"]
[BlackElo "2287"]
[Annotator "TA"]
[PlyCount "59"]
[EventDate "2025.01.04"]
[EventType "swiss"]
[EventCountry "CRO"]
[SourceTitle "playchess.com"]
[Source "ChessBase"]
[SourceQuality "1"]
[TimeControl "5400+30"]

{[%evp 18,59,13,12,18,16,20,-6,15,17,50,33,66,62,67,43,51,0,0,0,0,0,17,9,18,14,14,24,5,8,27,16,18,17,20,16,29,0,15,0,0,0,0,0]} 1. d4 {[%emt 0:00:03]} d5 {[%emt 0:00:05]} 2. c4 {[%emt 0:00:05]} e6 {[%emt 0:00:04]} 3. Nc3 {[%emt 0:00:08]} Nf6 {[%emt 0:00:04]} 4. cxd5 {[%emt 0:00:23]} exd5 {[%emt 0:00:33]} 5. Bg5 {[%emt 0:00:04]} Be7 {[%emt 0:00:06]} 6. e3 {[%emt 0:00:12]} c6 {[%emt 0:00:04]} 7. Bd3 {[%emt 0:00:22]} h6 {[%emt 0:00:04]} 8. Bh4 {[%emt 0:00:09]} O-O {[%emt 0:00:05]} 9. Nge2 {[%emt 0:00:30]} Nbd7 {[%emt 0:00:07]} 10. O-O {[%emt 0:00:53]} a5 {[%emt 0:00:02]} 11. f3 {[%emt 0:10:11]} b5 {[%emt 0:03:57][%cal Bb7b5,Bb5b4][%mdl 32]} 12. Bf2 {[%emt 0:05:42]} b4 {[%emt 0:05:13]} 13. Na4 {[%emt 0:02:26]} c5 {[%emt 0:00:22]} 14. b3 {[%emt 0:08:00]} cxd4 {[%emt 0:17:25]} 15. Nxd4 {[%emt 0:01:16]} Ne5 {[%emt 0:00:08]} 16. Be2 {[%emt 0:01:03]} Bd7 {[%emt 0:01:26]} 17. Nb2 {[%emt 0:01:57]} ({Better is} 17. Rc1 $14) 17... Qb6 $11 {[%emt 0:01:32]} 18. Rc1 {[%emt 0:03:49]} Rac8 {[%emt 0:01:28]} 19. Qd2 {[%emt 0:00:55]} Bc5 {[%emt 0:05:18]} 20. Rc2 {[%emt 0:10:21]} Bxd4 {[%emt 0:11:59]} 21. Rxc8 {[%emt 0:01:24]} Rxc8 {[%emt 0:00:11]} 22. exd4 {[%emt 0:00:40]} Ng6 {[%emt 0:00:06]} 23. Rc1 {[%emt 0:01:27]} Re8 {[%emt 0:03:55]} 24. Nd3 {[%emt 0:10:37][%cal Od3e5]} Bb5 {[%emt 0:00:36]} 25. Bf1 {[%emt 0:00:13]} Nd7 {[%emt 0:10:14]} 26. Nc5 {[%emt 0:11:05]} Bxf1 {[%emt 0:09:49]} 27. Rxf1 {[%emt 0:00:05]} Qb5 {[%emt 0:02:16] The position is equal.} 28. Nd3 {[%emt 0:06:02]} Ndf8 {[%emt 0:02:28]} 29. Re1 {[%emt 0:02:30]} Rxe1+ {[%emt 0:00:51]} 30. Bxe1 {[%emt 0:00:54] Weighted Error Value: White=0.08 (flawless) /Black=0.09 (flawless) .  Mistake:       	White=1     	---        Inaccurate:     	White=1     	Black=2      OK:         	White=7     	Black=8      Best:        	White=1     	---} 1/2-1/2

[Event "29th Bosnjaci Open 2025"]
[Site "Bosnjaci"]
[Date "2025.01.04"]
[Round "3.14"]
[White "Vucenovic, Damian"]
[Black "Novak, Ivo"]
[Result "1-0"]
[ECO "B30"]
[WhiteElo "2272"]
[BlackElo "1957"]
[Annotator "TA"]
[PlyCount "47"]
[EventDate "2025.01.04"]
[EventType "swiss"]
[EventCountry "CRO"]
[SourceTitle "playchess.com"]
[Source "ChessBase"]
[SourceQuality "1"]
[TimeControl "5400+30"]

{[%evp 9,47,35,42,35,31,38,52,46,41,45,83,72,73,74,68,70,66,79,170,172,237,240,215,242,225,249,248,260,256,230,265,231,234,218,399,391,395,387,654,652]} 1. e4 {[%emt 0:00:06]} c5 {[%emt 0:00:06]} 2. Nf3 {[%emt 0:00:18]} Nc6 {[%emt 0:00:20]} 3. Bb5 {[%emt 0:00:52]} e5 {[%emt 0:00:27]} 4. O-O {[%emt 0:00:27]} Bd6 {[%emt 0:00:21]} 5. c3 {[%emt 0:01:44]} a6 {[%emt 0:02:16]} 6. Ba4 {[%emt 0:00:13]} b5 {[%emt 0:00:47]} 7. Bc2 {[%emt 0:00:05]} Nf6 {[%emt 0:01:00]} 8. d4 {[%emt 0:00:20] White is slightly better.} cxd4 {[%emt 0:03:44]} 9. cxd4 {[%emt 0:00:15]} Qc7 {[%emt 0:08:09]} 10. dxe5 {[%emt 0:02:55]} Nxe5 {[%emt 0:02:30]} 11. Nxe5 {[%emt 0:01:00]} Bxe5 {[%emt 0:00:35]} 12. f4 {[%emt 0:00:21]} Qc5+ {[%emt 0:03:03]} 13. Kh1 {[%emt 0:00:17]} Bc7 {[%emt 0:02:30]} (13... Bd4 $16 {was necessary.}) 14. e5 $36 {[%emt 0:10:59][%mdl 2048] Black is under strong pressure.} Nd5 {[%emt 0:02:04]} (14... Ng4 $142) 15. Be4 {[%emt 0:00:28]} Bb7 {[%emt 0:04:20] [#]} 16. Qf3 $1 {[%emt 0:01:24]} Bc6 {[%emt 0:05:57]} 17. Rd1 {[%emt 0:02:57]} Nb6 {[%emt 0:03:52] [#]} 18. Nc3 {[%emt 0:00:43] And now Be3 would win.} O-O {[%emt 0:07:47]} 19. Be3 {[%emt 0:02:05]} Qb4 {[%emt 0:04:59]} 20. Bxc6 {[%emt 0:02:58]} dxc6 {[%emt 0:00:30]} 21. Qxc6 {[%emt 0:01:54]} Rfc8 {[%emt 0:06:03] Black is weak on the dark squares} (21... Qc4 22. Qb7 Rfb8) 22. Bxb6 {[%emt 0:02:05]} Bxe5 {[%emt 0:09:52]} 23. Nd5 {[%emt 0:02:47]} Qf8 {[%emt 0:05:52]} (23... Rxc6 24. Nxb4 Rxb6 25. fxe5 Re6) 24. Qd7 {[%emt 0:03:16] Weighted Error Value: White=0.01 (flawless) /Black=0.54.  Mistake:       	---       	Black=4      Inaccurate:     	---       	Black=1      OK:         	White=6     	Black=7      Best:        	White=5     	---        Strong:       	White=1     	---} 1-0

[Event "29th Bosnjaci Open 2025"]
[Site "Bosnjaci"]
[Date "2025.01.04"]
[Round "3.15"]
[White "Tomic, Stjepan"]
[Black "Grgantov, Marin"]
[Result "0-1"]
[ECO "C65"]
[WhiteElo "1978"]
[BlackElo "2191"]
[Annotator "TA"]
[PlyCount "77"]
[EventDate "2025.01.04"]
[EventType "swiss"]
[EventCountry "CRO"]
[SourceTitle "playchess.com"]
[Source "ChessBase"]
[SourceQuality "1"]
[TimeControl "5400+30"]

{[%evp 11,77,13,7,0,0,-10,-12,-16,-21,-30,-22,-188,-179,-152,-47,-135,-139,-183,-196,-267,-247,-255,-256,-203,-152,-692,-150,-168,-133,-128,-143,-203,-207,-200,-151,-157,-156,-158,-151,-158,-141,-168,-110,-191,-142,-194,-202,-188,-197,-204,-158,-166,-185,-208,-189,-255,-254,-239,-246,-262,-265,-235,-227,-443,-429,-502,-516,-582]} 1. e4 {[%emt 0:00:03]} e5 {[%emt 0:00:21]} 2. Nf3 {[%emt 0:00:06]} Nc6 {[%emt 0:00:04]} 3. Bb5 {[%emt 0:00:08]} Nf6 {[%emt 0:00:37]} 4. d3 {[%emt 0:02:13]} Bc5 {[%emt 0:00:59]} 5. O-O {[%emt 0:00:21]} Nd4 {[%emt 0:05:41]} 6. Nxd4 {[%emt 0:01:54]} Bxd4 {[%emt 0:00:06]} 7. c3 {[%emt 0:02:18]} Bb6 {[%emt 0:02:51]} 8. Bg5 {[%emt 0:01:56]} h6 {[%emt 0:01:16]} 9. Bh4 {[%emt 0:00:37] The position is equal.} c6 {[%emt 0:04:24]} 10. Ba4 {[%emt 0:00:10]} d6 {[%emt 0:01:52]} 11. Nd2 $2 {[%emt 0:03:37]} (11. Bxf6 $11 {and White has nothing to worry.} Qxf6 12. Bb3) 11... g5 $19 {[%emt 0:03:09][%cal Oc8g4]} 12. Bg3 {[%emt 0:00:06][%cal Od3d4] [#]} Bg4 {[%emt 0:08:53]} (12... h5 $1 $17 {[%cal Rh5h4] ...h4 would now be deadly.} 13. h4 Bg4) 13. Qe1 {[%emt 0:00:58] [#]} (13. Qc2 $15) 13... h5 $1 $17 {[%emt 0:02:50] aiming for ...h4. Black is more active.} 14. h4 {[%emt 0:04:12]} Nd7 {[%emt 0:05:34]} 15. hxg5 {[%emt 0:07:56]} (15. Kh1 {was worth a try.}) 15... h4 {[%emt 0:01:09]} 16. Bh2 {[%emt 0:00:14]} Qxg5 {[%emt 0:00:43]} 17. Kh1 {[%emt 0:05:36]} O-O-O {[%emt 0:05:03] And now ...Rdg8 would win.} ({Resist} 17... h3 18. g3 $17) 18. Nc4 $2 {[%emt 0:04:35]} (18. f4 $17 Qg6 19. f5) 18... Bc7 $2 {[%emt 0:03:03]} (18... h3 $19 {[%cal Og4f3] ( -> ...Bf3!)} 19. Nxb6+ (19. Nxd6+ $2 {perishes.} Kc7 $19) 19... Nxb6) 19. Qe3 {[%emt 0:01:41] Wards off Bf3} Qxe3 {[%emt 0:01:05]} 20. Nxe3 {[%emt 0:00:06]} Be2 {[%emt 0:00:03][%csl LRd3,LRf1]} 21. Bc2 {[%emt 0:01:02]} (21. Rfe1 $17 {keeps fighting.} Bxd3 22. f3) 21... Bxf1 $19 {[%emt 0:00:17]} 22. Rxf1 {[%emt 0:00:02]} Nb6 {[%emt 0:04:06]} 23. a4 {[%emt 0:07:05]} a5 {[%emt 0:07:12]} 24. b4 {[%emt 0:00:26]} Nd7 {[%emt 0:02:21]} 25. Bb3 {[%emt 0:00:38]} Rh7 {[%emt 0:01:28]} 26. Nf5 {[%emt 0:02:28]} Nf8 {[%emt 0:01:41]} (26... Nf6 $19 27. Re1 Bb6) 27. Bd1 {[%emt 0:06:47]} (27. b5 $17 {was called for.}) 27... Ne6 {[%emt 0:01:48]} ({Better is} 27... axb4 $19 28. cxb4 Ne6) 28. Bg4 {[%emt 0:00:42]} (28. b5 $17 {might work better.}) 28... Kb8 {[%emt 0:05:35]} 29. Rb1 {[%emt 0:00:22]} axb4 {[%emt 0:01:51]} 30. cxb4 {[%emt 0:00:20]} b5 {[%emt 0:08:05]} 31. a5 {[%emt 0:00:55]} Kb7 {[%emt 0:01:11]} 32. Kg1 {[%emt 0:02:34]} d5 {[%emt 0:02:59]} 33. Rc1 {[%emt 0:01:35]} (33. exd5 $142 Rxd5 34. Re1) 33... dxe4 {[%emt 0:00:59]} 34. dxe4 {[%emt 0:00:37]} Nd4 {[%emt 0:00:37]} 35. Kf1 {[%emt 0:01:10]} Nxf5 {[%emt 0:01:29]} 36. Bxf5 {[%emt 0:00:06]} Rh6 {[%emt 0:00:08] Strongly threatening ...Rd4.} 37. Bg1 $2 {[%emt 0:01:04]} (37. f3) 37... Rhd6 {[%emt 0:00:54]} 38. Ke1 {[%emt 0:00:26] Dodges Rd1+} Rd4 {[%emt 0:01:28]} 39. Rb1 {[%emt 0:00:46] Weighted Error Value: White=0.63/Black=0.34.  Loses game:     	White=2     	---        Missed win:     	---       	Black=1      Mistake:       	White=7     	Black=3      Inaccurate:     	White=1     	---        OK:         	White=3     	Black=13     Best:        	White=2     	Black=2      Strong:       	---       	Black=1} 0-1

[Event "29th Bosnjaci Open 2025"]
[Site "Bosnjaci"]
[Date "2025.01.04"]
[Round "3.16"]
[White "Vidovic, Sasa"]
[Black "Vukosavic, Darko"]
[Result "1/2-1/2"]
[ECO "A01"]
[WhiteElo "2173"]
[BlackElo "1921"]
[Annotator "RC"]
[PlyCount "41"]
[EventDate "2025.01.04"]
[EventType "swiss"]
[EventCountry "CRO"]
[SourceTitle "playchess.com"]
[Source "ChessBase"]
[SourceQuality "1"]
[TimeControl "5400+30"]

1. b3 {[%emt 0:05:52]} Nf6 {[%emt 0:00:17]} 2. Bb2 {[%emt 0:00:07]} g6 {[%emt 0:02:01]} 3. g4 {[%emt 0:07:42]} Bg7 {[%emt 0:05:07]} 4. g5 {[%emt 0:01:28]} Nh5 {[%emt 0:00:07]} 5. Bxg7 {[%emt 0:00:08]} Nxg7 {[%emt 0:00:14]} 6. Nc3 {[%emt 0:00:07]} d5 {[%emt 0:01:43]} 7. d4 {[%emt 0:00:23]} c5 {[%emt 0:05:52]} 8. dxc5 {[%emt 0:28:09]} d4 {[%emt 0:02:53]} 9. Ne4 {[%emt 0:02:13]} Bf5 {[%emt 0:00:48]} 10. Bg2 {[%emt 0:10:21]} Nc6 {[%emt 0:01:56]} 11. Qd2 {[%emt 0:00:49]} Qc7 {[%emt 0:07:44]} 12. Ng3 {[%emt 0:04:23]} O-O {[%emt 0:04:25]} 13. Bxc6 {[%emt 0:03:34]} Qxc6 {[%emt 0:00:22]} 14. Qxd4 {[%emt 0:02:50]} Rfd8 {[%emt 0:11:34]} 15. Qc3 {[%emt 0:04:16]} Rac8 {[%emt 0:05:53]} 16. Nf3 {[%emt 0:04:39]} Bh3 {[%emt 0:08:21]} 17. b4 {[%emt 0:01:50]} Qd5 {[%emt 0:03:59]} 18. Nd2 {[%emt 0:04:55]} b6 {[%emt 0:04:05]} 19. e4 {[%emt 0:01:23]} Qxg5 {[%emt 0:00:44]} 20. O-O-O {[%emt 0:00:33]} bxc5 {[%emt 0:00:41]} 21. b5 {[%emt 0:00:08]} 1/2-1/2

[Event "29th Bosnjaci Open 2025"]
[Site "Bosnjaci"]
[Date "2025.01.04"]
[Round "3.17"]
[White "Colev, Ivor"]
[Black "Maltasic, Eva"]
[Result "1-0"]
[ECO "B33"]
[WhiteElo "2169"]
[BlackElo "1664"]
[Annotator "RC"]
[PlyCount "67"]
[EventDate "2025.01.04"]
[EventType "swiss"]
[EventCountry "CRO"]
[SourceTitle "playchess.com"]
[Source "ChessBase"]
[SourceQuality "1"]
[TimeControl "5400+30"]

1. e4 {[%emt 0:00:22]} c5 {[%emt 0:00:06]} 2. Nf3 {[%emt 0:00:06]} Nc6 {[%emt 0:00:08]} 3. d4 {[%emt 0:00:06]} cxd4 {[%emt 0:00:07]} 4. Nxd4 {[%emt 0:00:14]} Nf6 {[%emt 0:00:07]} 5. Nc3 {[%emt 0:00:04]} e5 {[%emt 0:00:11]} 6. Ndb5 {[%emt 0:00:15]} d6 {[%emt 0:00:12]} 7. Bg5 {[%emt 0:00:18]} a6 {[%emt 0:00:08]} 8. Na3 {[%emt 0:00:03]} b5 {[%emt 0:00:07]} 9. Nd5 {[%emt 0:00:06]} Be7 {[%emt 0:00:05]} 10. Bxf6 {[%emt 0:00:03]} Bxf6 {[%emt 0:00:09]} 11. c4 {[%emt 0:00:03]} b4 {[%emt 0:00:11]} 12. Nc2 {[%emt 0:00:04]} a5 {[%emt 0:00:12]} 13. Qf3 {[%emt 0:00:53]} Bg5 {[%emt 0:00:51]} 14. h4 {[%emt 0:00:53]} Be7 {[%emt 0:00:09]} 15. Rd1 {[%emt 0:03:55]} Be6 {[%emt 0:06:03]} 16. g3 {[%emt 0:29:48]} O-O {[%emt 0:03:29]} 17. Bh3 {[%emt 0:00:36]} Rb8 {[%emt 0:06:41]} 18. b3 {[%emt 0:04:32]} Qd7 {[%emt 0:03:56]} 19. Bxe6 {[%emt 0:04:27]} Qxe6 {[%emt 0:03:19]} 20. O-O {[%emt 0:01:49]} Rbd8 {[%emt 0:07:20]} 21. Rd3 {[%emt 0:04:07]} f5 {[%emt 0:01:25]} 22. exf5 {[%emt 0:03:36]} Rxf5 {[%emt 0:00:53]} 23. Qe4 {[%emt 0:01:21]} Rff8 {[%emt 0:05:28]} 24. Nc7 {[%emt 0:06:57]} Qf5 {[%emt 0:01:56]} 25. Qd5+ {[%emt 0:04:13]} Rf7 {[%emt 0:00:08]} 26. Ne6 {[%emt 0:02:55]} Rc8 {[%emt 0:00:32]} 27. Ne3 {[%emt 0:15:01]} Qg6 {[%emt 0:02:26]} 28. c5 {[%emt 0:04:22]} dxc5 {[%emt 0:01:33]} 29. h5 {[%emt 0:00:48]} Qxh5 {[%emt 0:02:22]} 30. Qd7 {[%emt 0:00:10]} Rd8 {[%emt 0:03:07]} 31. Nxd8 {[%emt 0:01:35]} Nxd8 {[%emt 0:00:04]} 32. Qe8+ {[%emt 0:00:16]} Bf8 {[%emt 0:00:47]} 33. Rxd8 {[%emt 0:00:05]} Qh3 {[%emt 0:01:08]} 34. Qxe5 {[%emt 0:02:14]} 1-0